{"text_format":"3","workbook":"xlsx","n_sheets":4,"sheets":["מבט כולל על תקציב","סיכום תקציב","הוצאות חודשיות","נתונים נוספים"],"not_rendered":{"charts":1,"images":4,"defined_names":7,"pivot_tables":2},"read":"whole","date_system":"1900"}

{"sheet":"מבט כולל על תקציב","index":0,"n_rows":12,"n_cols":8,"rows_kept":12,"merged":[[2,1,2,2],[3,1,3,2],[4,1,4,2]]}
[{"$nulls":7}," "]
[null,"יתרה"]
[null,"יתרה מתוכננת",null,{"$f":"הכנסות_מתוכננות-הוצאות_מתוכננות","v":{"v":1585,"d":"₪ 1,585"}},null,"'מתוכנן' פחות הוצאות"]
[null,"יתרה בפועל ",null,{"$f":"הכנסות_בפועל-הוצאות_בפועל","v":{"v":1740,"d":"₪ 1,740"}},null,"'בפועל' פחות הוצאות"]
[null,"הפרש",null,{"$f":"D4-D3","v":{"v":155,"d":"₪ 155"}},null,"'בפועל' פחות 'מתוכנן'"]
[null,"הכנסות",{"$nulls":3},"הוצאות"]
[null,null,"מתוכנן","בפועל",null,"מתוכנן","בפועל"]
[null,"הכנסה 1",{"v":6000,"d":"₪ 6,000"},{"v":5800,"d":"₪ 5,800"},null,{"$f":"SUM(טבלת_הוצאות_חודשיות[עלות מתוכננת])","v":{"v":7915,"d":"₪ 7,915"}},{"$f":"SUM(טבלת_הוצאות_חודשיות[עלות בפועל])","v":{"v":7860,"d":"₪ 7,860"}}]
[null,"הכנסה 2",{"v":1000,"d":"₪ 1,000"},{"v":2300,"d":"₪ 2,300"}]
[null,"הכנסה נוספת",{"v":2500,"d":"₪ 2,500"},{"v":1500,"d":"₪ 1,500"}]
[null,"סך הכל הכנסות",{"$f":"SUM(C8:C10)","v":{"v":9500,"d":"₪ 9,500"}},{"$f":"SUM(D8:D10)","v":{"v":9600,"d":"₪ 9,600"}}]
[null,"התפלגות הוצאות בפועל"]

{"sheet":"סיכום תקציב","index":1,"n_rows":45,"n_cols":7,"rows_kept":45}
[null,"סיכום תקציב",{"$nulls":4}," "]
[]
[null,"קטגוריות","עלות מתוכננת ","עלות בפועל ","הפרש "]
[null,"בידור",{"v":400,"d":"₪ 400"},{"v":358,"d":"₪ 358"},{"v":7,"d":"₪ 7"}]
[null,"אירועי ספורט",{"v":0,"d":"₪ 0"},{"v":40,"d":"₪ 40"},{"v":1,"d":"₪ 1"}]
[null,"וידאו/DVD (השכרה)",{"v":30,"d":"₪ 30"},{"v":20,"d":"₪ 20"},{"v":1,"d":"₪ 1"}]
[null,"וידאו/DVD (רכישה)",{"v":20,"d":"₪ 20"},{"v":50,"d":"₪ 50"},{"v":1,"d":"₪ 1"}]
[null,"מוסיקה (תקליטורים, הורדות וכן הלאה)",{"v":50,"d":"₪ 50"},{"v":30,"d":"₪ 30"},{"v":1,"d":"₪ 1"}]
[null,"מופעים",{"v":50,"d":"₪ 50"},{"v":40,"d":"₪ 40"},{"v":1,"d":"₪ 1"}]
[null,"סרטים",{"v":50,"d":"₪ 50"},{"v":28,"d":"₪ 28"},{"v":1,"d":"₪ 1"}]
[null,"תיאטרון",{"v":200,"d":"₪ 200"},{"v":150,"d":"₪ 150"},{"v":1,"d":"₪ 1"}]
[]
[null,"ביטוח",{"v":900,"d":"₪ 900"},{"v":900,"d":"₪ 900"},{"v":3,"d":"₪ 3"}]
[null,"בריאות",{"v":400,"d":"₪ 400"},{"v":400,"d":"₪ 400"},{"v":1,"d":"₪ 1"}]
[null,"דירה",{"v":400,"d":"₪ 400"},{"v":400,"d":"₪ 400"},{"v":1,"d":"₪ 1"}]
[null,"חיים",{"v":100,"d":"₪ 100"},{"v":100,"d":"₪ 100"},{"v":1,"d":"₪ 1"}]
[]
[null,"בריאות וטיפוח",{"v":150,"d":"₪ 150"},{"v":140,"d":"₪ 140"},{"v":5,"d":"₪ 5"}]
[]
[null,"דיור",{"v":2830,"d":"₪ 2,830"},{"v":2702,"d":"₪ 2,702"},{"v":13,"d":"₪ 13"}]
[]
[null,"הלוואות",{"v":200,"d":"₪ 200"},{"v":200,"d":"₪ 200"},{"v":5,"d":"₪ 5"}]
[]
[null,"חיות מחמד",{"v":170,"d":"₪ 170"},{"v":100,"d":"₪ 100"},{"v":4,"d":"₪ 4"}]
[]
[null,"חסכונות",{"v":200,"d":"₪ 200"},{"v":200,"d":"₪ 200"},{"v":2,"d":"₪ 2"}]
[]
[null,"ילדים",{"v":140,"d":"₪ 140"},{"v":140,"d":"₪ 140"},{"v":4,"d":"₪ 4"}]
[]
[null,"מזון",{"v":1100,"d":"₪ 1,100"},{"v":1320,"d":"₪ 1,320"},{"v":2,"d":"₪ 2"}]
[]
[null,"מסים",{"v":300,"d":"₪ 300"},{"v":300,"d":"₪ 300"},{"v":3,"d":"₪ 3"}]
[]
[null,"מתנות וצדקה",{"v":100,"d":"₪ 100"},{"v":125,"d":"₪ 125"},{"v":4,"d":"₪ 4"}]
[]
[null,"תחבורה",{"v":1425,"d":"₪ 1,425"},{"v":1375,"d":"₪ 1,375"},{"v":7,"d":"₪ 7"}]
[null,"ביטוח",{"v":300,"d":"₪ 300"},{"v":300,"d":"₪ 300"},{"v":1,"d":"₪ 1"}]
[null,"דלק",{"v":450,"d":"₪ 450"},{"v":400,"d":"₪ 400"},{"v":1,"d":"₪ 1"}]
[null,"דמי חניה",null,null,{"v":1,"d":"₪ 1"}]
[null,"רישוי ",{"v":25,"d":"₪ 25"},{"v":25,"d":"₪ 25"},{"v":1,"d":"₪ 1"}]
[null,"תחזוקה",{"v":100,"d":"₪ 100"},{"v":50,"d":"₪ 50"},{"v":1,"d":"₪ 1"}]
[null,"תשלום עבור אוטובוס/מונית",{"v":100,"d":"₪ 100"},{"v":150,"d":"₪ 150"},{"v":1,"d":"₪ 1"}]
[null,"תשלום רכב",{"v":450,"d":"₪ 450"},{"v":450,"d":"₪ 450"},{"v":1,"d":"₪ 1"}]
[]
[null,"סכום כולל",{"v":7915,"d":"₪ 7,915"},{"v":7860,"d":"₪ 7,860"},{"v":59,"d":"₪ 59"}]

{"sheet":"הוצאות חודשיות","index":2,"n_rows":61,"n_cols":8,"rows_kept":61}
[{"$nulls":7}," "]
[null,"תיאור","קטגוריה","עלות מתוכננת","עלות בפועל","הפרש","מבט כולל על עלות בפועל"]
[null,"פעילויות מחוץ ללימודים","ילדים",{"v":40,"d":"₪ 40"},{"v":40,"d":"₪ 40"},{"$f":"IF(OR(טבלת_הוצאות_חודשיות[[#This Row],[עלות מתוכננת]]=\"\",טבלת_הוצאות_חודשיות[[#This Row],[עלות בפועל]]=\"\"),\"\",טבלת_הוצאות_חודשיות[[#This Row],[עלות מתוכננת]]-טבלת_הוצאות_חודשיות[[#This Row],[עלות בפועל]])","v":{"v":0,"d":"₪ 0"}},{"$f":"טבלת_הוצאות_חודשיות[[#This Row],[עלות בפועל]]","v":40}]
[null,"תרופות","ילדים",null,null,{"$f":"IF(OR(טבלת_הוצאות_חודשיות[[#This Row],[עלות מתוכננת]]=\"\",טבלת_הוצאות_חודשיות[[#This Row],[עלות בפועל]]=\"\"),\"\",טבלת_הוצאות_חודשיות[[#This Row],[עלות מתוכננת]]-טבלת_הוצאות_חודשיות[[#This Row],[עלות בפועל]])","v":""},{"$f":"טבלת_הוצאות_חודשיות[[#This Row],[עלות בפועל]]","v":0}]
[null,"ציוד לבית הספר","ילדים",null,null,{"$f":"IF(OR(טבלת_הוצאות_חודשיות[[#This Row],[עלות מתוכננת]]=\"\",טבלת_הוצאות_חודשיות[[#This Row],[עלות בפועל]]=\"\"),\"\",טבלת_הוצאות_חודשיות[[#This Row],[עלות מתוכננת]]-טבלת_הוצאות_חודשיות[[#This Row],[עלות בפועל]])","v":""},{"$f":"טבלת_הוצאות_חודשיות[[#This Row],[עלות בפועל]]","v":0}]
[null,"תשלומים לבית הספר","ילדים",{"v":100,"d":"₪ 100"},{"v":100,"d":"₪ 100"},{"$f":"IF(OR(טבלת_הוצאות_חודשיות[[#This Row],[עלות מתוכננת]]=\"\",טבלת_הוצאות_חודשיות[[#This Row],[עלות בפועל]]=\"\"),\"\",טבלת_הוצאות_חודשיות[[#This Row],[עלות מתוכננת]]-טבלת_הוצאות_חודשיות[[#This Row],[עלות בפועל]])","v":{"v":0,"d":"₪ 0"}},{"$f":"טבלת_הוצאות_חודשיות[[#This Row],[עלות בפועל]]","v":100}]
[null,"מופעים","בידור",{"v":50,"d":"₪ 50"},{"v":40,"d":"₪ 40"},{"$f":"IF(OR(טבלת_הוצאות_חודשיות[[#This Row],[עלות מתוכננת]]=\"\",טבלת_הוצאות_חודשיות[[#This Row],[עלות בפועל]]=\"\"),\"\",טבלת_הוצאות_חודשיות[[#This Row],[עלות מתוכננת]]-טבלת_הוצאות_חודשיות[[#This Row],[עלות בפועל]])","v":{"v":10,"d":"₪ 10"}},{"$f":"טבלת_הוצאות_חודשיות[[#This Row],[עלות בפועל]]","v":40}]
[null,"תיאטרון","בידור",{"v":200,"d":"₪ 200"},{"v":150,"d":"₪ 150"},{"$f":"IF(OR(טבלת_הוצאות_חודשיות[[#This Row],[עלות מתוכננת]]=\"\",טבלת_הוצאות_חודשיות[[#This Row],[עלות בפועל]]=\"\"),\"\",טבלת_הוצאות_חודשיות[[#This Row],[עלות מתוכננת]]-טבלת_הוצאות_חודשיות[[#This Row],[עלות בפועל]])","v":{"v":50,"d":"₪ 50"}},{"$f":"טבלת_הוצאות_חודשיות[[#This Row],[עלות בפועל]]","v":150}]
[null,"סרטים","בידור",{"v":50,"d":"₪ 50"},{"v":28,"d":"₪ 28"},{"$f":"IF(OR(טבלת_הוצאות_חודשיות[[#This Row],[עלות מתוכננת]]=\"\",טבלת_הוצאות_חודשיות[[#This Row],[עלות בפועל]]=\"\"),\"\",טבלת_הוצאות_חודשיות[[#This Row],[עלות מתוכננת]]-טבלת_הוצאות_חודשיות[[#This Row],[עלות בפועל]])","v":{"v":22,"d":"₪ 22"}},{"$f":"טבלת_הוצאות_חודשיות[[#This Row],[עלות בפועל]]","v":28}]
[null,"מוסיקה (תקליטורים, הורדות וכן הלאה)","בידור",{"v":50,"d":"₪ 50"},{"v":30,"d":"₪ 30"},{"$f":"IF(OR(טבלת_הוצאות_חודשיות[[#This Row],[עלות מתוכננת]]=\"\",טבלת_הוצאות_חודשיות[[#This Row],[עלות בפועל]]=\"\"),\"\",טבלת_הוצאות_חודשיות[[#This Row],[עלות מתוכננת]]-טבלת_הוצאות_חודשיות[[#This Row],[עלות בפועל]])","v":{"v":20,"d":"₪ 20"}},{"$f":"טבלת_הוצאות_חודשיות[[#This Row],[עלות בפועל]]","v":30}]
[null,"אירועי ספורט","בידור",{"v":0,"d":"₪ 0"},{"v":40,"d":"₪ 40"},{"$f":"IF(OR(טבלת_הוצאות_חודשיות[[#This Row],[עלות מתוכננת]]=\"\",טבלת_הוצאות_חודשיות[[#This Row],[עלות בפועל]]=\"\"),\"\",טבלת_הוצאות_חודשיות[[#This Row],[עלות מתוכננת]]-טבלת_הוצאות_חודשיות[[#This Row],[עלות בפועל]])","v":{"v":-40,"d":"₪ -40"}},{"$f":"טבלת_הוצאות_חודשיות[[#This Row],[עלות בפועל]]","v":40}]
[null,"וידאו/DVD (רכישה)","בידור",{"v":20,"d":"₪ 20"},{"v":50,"d":"₪ 50"},{"$f":"IF(OR(טבלת_הוצאות_חודשיות[[#This Row],[עלות מתוכננת]]=\"\",טבלת_הוצאות_חודשיות[[#This Row],[עלות בפועל]]=\"\"),\"\",טבלת_הוצאות_חודשיות[[#This Row],[עלות מתוכננת]]-טבלת_הוצאות_חודשיות[[#This Row],[עלות בפועל]])","v":{"v":-30,"d":"₪ -30"}},{"$f":"טבלת_הוצאות_חודשיות[[#This Row],[עלות בפועל]]","v":50}]
[null,"וידאו/DVD (השכרה)","בידור",{"v":30,"d":"₪ 30"},{"v":20,"d":"₪ 20"},{"$f":"IF(OR(טבלת_הוצאות_חודשיות[[#This Row],[עלות מתוכננת]]=\"\",טבלת_הוצאות_חודשיות[[#This Row],[עלות בפועל]]=\"\"),\"\",טבלת_הוצאות_חודשיות[[#This Row],[עלות מתוכננת]]-טבלת_הוצאות_חודשיות[[#This Row],[עלות בפועל]])","v":{"v":10,"d":"₪ 10"}},{"$f":"טבלת_הוצאות_חודשיות[[#This Row],[עלות בפועל]]","v":20}]
[null,"ארוחות מחוץ לבית","מזון",{"v":1000,"d":"₪ 1,000"},{"v":1200,"d":"₪ 1,200"},{"$f":"IF(OR(טבלת_הוצאות_חודשיות[[#This Row],[עלות מתוכננת]]=\"\",טבלת_הוצאות_חודשיות[[#This Row],[עלות בפועל]]=\"\"),\"\",טבלת_הוצאות_חודשיות[[#This Row],[עלות מתוכננת]]-טבלת_הוצאות_חודשיות[[#This Row],[עלות בפועל]])","v":{"v":-200,"d":"₪ -200"}},{"$f":"טבלת_הוצאות_חודשיות[[#This Row],[עלות בפועל]]","v":1200}]
[null,"מצרכים","מזון",{"v":100,"d":"₪ 100"},{"v":120,"d":"₪ 120"},{"$f":"IF(OR(טבלת_הוצאות_חודשיות[[#This Row],[עלות מתוכננת]]=\"\",טבלת_הוצאות_חודשיות[[#This Row],[עלות בפועל]]=\"\"),\"\",טבלת_הוצאות_חודשיות[[#This Row],[עלות מתוכננת]]-טבלת_הוצאות_חודשיות[[#This Row],[עלות בפועל]])","v":{"v":-20,"d":"₪ -20"}},{"$f":"טבלת_הוצאות_חודשיות[[#This Row],[עלות בפועל]]","v":120}]
[null,"צדקה 1","מתנות וצדקה",{"v":75,"d":"₪ 75"},{"v":100,"d":"₪ 100"},{"$f":"IF(OR(טבלת_הוצאות_חודשיות[[#This Row],[עלות מתוכננת]]=\"\",טבלת_הוצאות_חודשיות[[#This Row],[עלות בפועל]]=\"\"),\"\",טבלת_הוצאות_חודשיות[[#This Row],[עלות מתוכננת]]-טבלת_הוצאות_חודשיות[[#This Row],[עלות בפועל]])","v":{"v":-25,"d":"₪ -25"}},{"$f":"טבלת_הוצאות_חודשיות[[#This Row],[עלות בפועל]]","v":100}]
[null,"צדקה 2","מתנות וצדקה",{"v":25,"d":"₪ 25"},{"v":25,"d":"₪ 25"},{"$f":"IF(OR(טבלת_הוצאות_חודשיות[[#This Row],[עלות מתוכננת]]=\"\",טבלת_הוצאות_חודשיות[[#This Row],[עלות בפועל]]=\"\"),\"\",טבלת_הוצאות_חודשיות[[#This Row],[עלות מתוכננת]]-טבלת_הוצאות_חודשיות[[#This Row],[עלות בפועל]])","v":{"v":0,"d":"₪ 0"}},{"$f":"טבלת_הוצאות_חודשיות[[#This Row],[עלות בפועל]]","v":25}]
[null,"מתנה 1","מתנות וצדקה",null,null,{"$f":"IF(OR(טבלת_הוצאות_חודשיות[[#This Row],[עלות מתוכננת]]=\"\",טבלת_הוצאות_חודשיות[[#This Row],[עלות בפועל]]=\"\"),\"\",טבלת_הוצאות_חודשיות[[#This Row],[עלות מתוכננת]]-טבלת_הוצאות_חודשיות[[#This Row],[עלות בפועל]])","v":""},{"$f":"טבלת_הוצאות_חודשיות[[#This Row],[עלות בפועל]]","v":0}]
[null,"מתנה 2","מתנות וצדקה",null,null,{"$f":"IF(OR(טבלת_הוצאות_חודשיות[[#This Row],[עלות מתוכננת]]=\"\",טבלת_הוצאות_חודשיות[[#This Row],[עלות בפועל]]=\"\"),\"\",טבלת_הוצאות_חודשיות[[#This Row],[עלות מתוכננת]]-טבלת_הוצאות_חודשיות[[#This Row],[עלות בפועל]])","v":""},{"$f":"טבלת_הוצאות_חודשיות[[#This Row],[עלות בפועל]]","v":0}]
[null,"כבלים/לוויין","דיור",{"v":100,"d":"₪ 100"},{"v":100,"d":"₪ 100"},{"$f":"IF(OR(טבלת_הוצאות_חודשיות[[#This Row],[עלות מתוכננת]]=\"\",טבלת_הוצאות_חודשיות[[#This Row],[עלות בפועל]]=\"\"),\"\",טבלת_הוצאות_חודשיות[[#This Row],[עלות מתוכננת]]-טבלת_הוצאות_חודשיות[[#This Row],[עלות בפועל]])","v":{"v":0,"d":"₪ 0"}},{"$f":"טבלת_הוצאות_חודשיות[[#This Row],[עלות בפועל]]","v":100}]
[null,"חשמל","דיור",{"v":45,"d":"₪ 45"},{"v":50,"d":"₪ 50"},{"$f":"IF(OR(טבלת_הוצאות_חודשיות[[#This Row],[עלות מתוכננת]]=\"\",טבלת_הוצאות_חודשיות[[#This Row],[עלות בפועל]]=\"\"),\"\",טבלת_הוצאות_חודשיות[[#This Row],[עלות מתוכננת]]-טבלת_הוצאות_חודשיות[[#This Row],[עלות בפועל]])","v":{"v":-5,"d":"₪ -5"}},{"$f":"טבלת_הוצאות_חודשיות[[#This Row],[עלות בפועל]]","v":50}]
[null,"גז","דיור",{"v":300,"d":"₪ 300"},{"v":400,"d":"₪ 400"},{"$f":"IF(OR(טבלת_הוצאות_חודשיות[[#This Row],[עלות מתוכננת]]=\"\",טבלת_הוצאות_חודשיות[[#This Row],[עלות בפועל]]=\"\"),\"\",טבלת_הוצאות_חודשיות[[#This Row],[עלות מתוכננת]]-טבלת_הוצאות_חודשיות[[#This Row],[עלות בפועל]])","v":{"v":-100,"d":"₪ -100"}},{"$f":"טבלת_הוצאות_חודשיות[[#This Row],[עלות בפועל]]","v":400}]
[null,"עוזרי בית","דיור",{"v":200,"d":"₪ 200"},null,{"$f":"IF(OR(טבלת_הוצאות_חודשיות[[#This Row],[עלות מתוכננת]]=\"\",טבלת_הוצאות_חודשיות[[#This Row],[עלות בפועל]]=\"\"),\"\",טבלת_הוצאות_חודשיות[[#This Row],[עלות מתוכננת]]-טבלת_הוצאות_חודשיות[[#This Row],[עלות בפועל]])","v":""},{"$f":"טבלת_הוצאות_חודשיות[[#This Row],[עלות בפועל]]","v":0}]
[null,"תחזוקה","דיור",{"v":200,"d":"₪ 200"},{"v":150,"d":"₪ 150"},{"$f":"IF(OR(טבלת_הוצאות_חודשיות[[#This Row],[עלות מתוכננת]]=\"\",טבלת_הוצאות_חודשיות[[#This Row],[עלות בפועל]]=\"\"),\"\",טבלת_הוצאות_חודשיות[[#This Row],[עלות מתוכננת]]-טבלת_הוצאות_חודשיות[[#This Row],[עלות בפועל]])","v":{"v":50,"d":"₪ 50"}},{"$f":"טבלת_הוצאות_חודשיות[[#This Row],[עלות בפועל]]","v":150}]
[null,"משכנתה או שכ\"ד","דיור",{"v":1700,"d":"₪ 1,700"},{"v":1700,"d":"₪ 1,700"},{"$f":"IF(OR(טבלת_הוצאות_חודשיות[[#This Row],[עלות מתוכננת]]=\"\",טבלת_הוצאות_חודשיות[[#This Row],[עלות בפועל]]=\"\"),\"\",טבלת_הוצאות_חודשיות[[#This Row],[עלות מתוכננת]]-טבלת_הוצאות_חודשיות[[#This Row],[עלות בפועל]])","v":{"v":0,"d":"₪ 0"}},{"$f":"טבלת_הוצאות_חודשיות[[#This Row],[עלות בפועל]]","v":1700}]
[null,"גז טבעי","דיור",null,null,{"$f":"IF(OR(טבלת_הוצאות_חודשיות[[#This Row],[עלות מתוכננת]]=\"\",טבלת_הוצאות_חודשיות[[#This Row],[עלות בפועל]]=\"\"),\"\",טבלת_הוצאות_חודשיות[[#This Row],[עלות מתוכננת]]-טבלת_הוצאות_חודשיות[[#This Row],[עלות בפועל]])","v":""},{"$f":"טבלת_הוצאות_חודשיות[[#This Row],[עלות בפועל]]","v":0}]
[null,"שירות אינטרנט","דיור",{"v":100,"d":"₪ 100"},{"v":100,"d":"₪ 100"},{"$f":"IF(OR(טבלת_הוצאות_חודשיות[[#This Row],[עלות מתוכננת]]=\"\",טבלת_הוצאות_חודשיות[[#This Row],[עלות בפועל]]=\"\"),\"\",טבלת_הוצאות_חודשיות[[#This Row],[עלות מתוכננת]]-טבלת_הוצאות_חודשיות[[#This Row],[עלות בפועל]])","v":{"v":0,"d":"₪ 0"}},{"$f":"טבלת_הוצאות_חודשיות[[#This Row],[עלות בפועל]]","v":100}]
[null,"טלפון (סלולרי)","דיור",{"v":60,"d":"₪ 60"},{"v":60,"d":"₪ 60"},{"$f":"IF(OR(טבלת_הוצאות_חודשיות[[#This Row],[עלות מתוכננת]]=\"\",טבלת_הוצאות_חודשיות[[#This Row],[עלות בפועל]]=\"\"),\"\",טבלת_הוצאות_חודשיות[[#This Row],[עלות מתוכננת]]-טבלת_הוצאות_חודשיות[[#This Row],[עלות בפועל]])","v":{"v":0,"d":"₪ 0"}},{"$f":"טבלת_הוצאות_חודשיות[[#This Row],[עלות בפועל]]","v":60}]
[null,"טלפון (בית)","דיור",{"v":35,"d":"₪ 35"},{"v":39,"d":"₪ 39"},{"$f":"IF(OR(טבלת_הוצאות_חודשיות[[#This Row],[עלות מתוכננת]]=\"\",טבלת_הוצאות_חודשיות[[#This Row],[עלות בפועל]]=\"\"),\"\",טבלת_הוצאות_חודשיות[[#This Row],[עלות מתוכננת]]-טבלת_הוצאות_חודשיות[[#This Row],[עלות בפועל]])","v":{"v":-4,"d":"₪ -4"}},{"$f":"טבלת_הוצאות_חודשיות[[#This Row],[עלות בפועל]]","v":39}]
[null,"ציוד","דיור",{"v":40,"d":"₪ 40"},{"v":55,"d":"₪ 55"},{"$f":"IF(OR(טבלת_הוצאות_חודשיות[[#This Row],[עלות מתוכננת]]=\"\",טבלת_הוצאות_חודשיות[[#This Row],[עלות בפועל]]=\"\"),\"\",טבלת_הוצאות_חודשיות[[#This Row],[עלות מתוכננת]]-טבלת_הוצאות_חודשיות[[#This Row],[עלות בפועל]])","v":{"v":-15,"d":"₪ -15"}},{"$f":"טבלת_הוצאות_חודשיות[[#This Row],[עלות בפועל]]","v":55}]
[null,"פינוי פסולת ומיחזור","דיור",{"v":25,"d":"₪ 25"},{"v":22,"d":"₪ 22"},{"$f":"IF(OR(טבלת_הוצאות_חודשיות[[#This Row],[עלות מתוכננת]]=\"\",טבלת_הוצאות_חודשיות[[#This Row],[עלות בפועל]]=\"\"),\"\",טבלת_הוצאות_חודשיות[[#This Row],[עלות מתוכננת]]-טבלת_הוצאות_חודשיות[[#This Row],[עלות בפועל]])","v":{"v":3,"d":"₪ 3"}},{"$f":"טבלת_הוצאות_חודשיות[[#This Row],[עלות בפועל]]","v":22}]
[null,"מים וביוב","דיור",{"v":25,"d":"₪ 25"},{"v":26,"d":"₪ 26"},{"$f":"IF(OR(טבלת_הוצאות_חודשיות[[#This Row],[עלות מתוכננת]]=\"\",טבלת_הוצאות_חודשיות[[#This Row],[עלות בפועל]]=\"\"),\"\",טבלת_הוצאות_חודשיות[[#This Row],[עלות מתוכננת]]-טבלת_הוצאות_חודשיות[[#This Row],[עלות בפועל]])","v":{"v":-1,"d":"₪ -1"}},{"$f":"טבלת_הוצאות_חודשיות[[#This Row],[עלות בפועל]]","v":26}]
[null,"בריאות","ביטוח",{"v":400,"d":"₪ 400"},{"v":400,"d":"₪ 400"},{"$f":"IF(OR(טבלת_הוצאות_חודשיות[[#This Row],[עלות מתוכננת]]=\"\",טבלת_הוצאות_חודשיות[[#This Row],[עלות בפועל]]=\"\"),\"\",טבלת_הוצאות_חודשיות[[#This Row],[עלות מתוכננת]]-טבלת_הוצאות_חודשיות[[#This Row],[עלות בפועל]])","v":{"v":0,"d":"₪ 0"}},{"$f":"טבלת_הוצאות_חודשיות[[#This Row],[עלות בפועל]]","v":400}]
[null,"דירה","ביטוח",{"v":400,"d":"₪ 400"},{"v":400,"d":"₪ 400"},{"$f":"IF(OR(טבלת_הוצאות_חודשיות[[#This Row],[עלות מתוכננת]]=\"\",טבלת_הוצאות_חודשיות[[#This Row],[עלות בפועל]]=\"\"),\"\",טבלת_הוצאות_חודשיות[[#This Row],[עלות מתוכננת]]-טבלת_הוצאות_חודשיות[[#This Row],[עלות בפועל]])","v":{"v":0,"d":"₪ 0"}},{"$f":"טבלת_הוצאות_חודשיות[[#This Row],[עלות בפועל]]","v":400}]
[null,"חיים","ביטוח",{"v":100,"d":"₪ 100"},{"v":100,"d":"₪ 100"},{"$f":"IF(OR(טבלת_הוצאות_חודשיות[[#This Row],[עלות מתוכננת]]=\"\",טבלת_הוצאות_חודשיות[[#This Row],[עלות בפועל]]=\"\"),\"\",טבלת_הוצאות_חודשיות[[#This Row],[עלות מתוכננת]]-טבלת_הוצאות_חודשיות[[#This Row],[עלות בפועל]])","v":{"v":0,"d":"₪ 0"}},{"$f":"טבלת_הוצאות_חודשיות[[#This Row],[עלות בפועל]]","v":100}]
[null,"כרטיס אשראי 1","הלוואות",{"v":200,"d":"₪ 200"},{"v":200,"d":"₪ 200"},{"$f":"IF(OR(טבלת_הוצאות_חודשיות[[#This Row],[עלות מתוכננת]]=\"\",טבלת_הוצאות_חודשיות[[#This Row],[עלות בפועל]]=\"\"),\"\",טבלת_הוצאות_חודשיות[[#This Row],[עלות מתוכננת]]-טבלת_הוצאות_חודשיות[[#This Row],[עלות בפועל]])","v":{"v":0,"d":"₪ 0"}},{"$f":"טבלת_הוצאות_חודשיות[[#This Row],[עלות בפועל]]","v":200}]
[null,"כרטיס אשראי 2","הלוואות",null,null,{"$f":"IF(OR(טבלת_הוצאות_חודשיות[[#This Row],[עלות מתוכננת]]=\"\",טבלת_הוצאות_חודשיות[[#This Row],[עלות בפועל]]=\"\"),\"\",טבלת_הוצאות_חודשיות[[#This Row],[עלות מתוכננת]]-טבלת_הוצאות_חודשיות[[#This Row],[עלות בפועל]])","v":""},{"$f":"טבלת_הוצאות_חודשיות[[#This Row],[עלות בפועל]]","v":0}]
[null,"כרטיס אשראי 3","הלוואות",null,null,{"$f":"IF(OR(טבלת_הוצאות_חודשיות[[#This Row],[עלות מתוכננת]]=\"\",טבלת_הוצאות_חודשיות[[#This Row],[עלות בפועל]]=\"\"),\"\",טבלת_הוצאות_חודשיות[[#This Row],[עלות מתוכננת]]-טבלת_הוצאות_חודשיות[[#This Row],[עלות בפועל]])","v":""},{"$f":"טבלת_הוצאות_חודשיות[[#This Row],[עלות בפועל]]","v":0}]
[null,"אישי","הלוואות",null,null,{"$f":"IF(OR(טבלת_הוצאות_חודשיות[[#This Row],[עלות מתוכננת]]=\"\",טבלת_הוצאות_חודשיות[[#This Row],[עלות בפועל]]=\"\"),\"\",טבלת_הוצאות_חודשיות[[#This Row],[עלות מתוכננת]]-טבלת_הוצאות_חודשיות[[#This Row],[עלות בפועל]])","v":""},{"$f":"טבלת_הוצאות_חודשיות[[#This Row],[עלות בפועל]]","v":0}]
[null,"סטודנט","הלוואות",null,null,{"$f":"IF(OR(טבלת_הוצאות_חודשיות[[#This Row],[עלות מתוכננת]]=\"\",טבלת_הוצאות_חודשיות[[#This Row],[עלות בפועל]]=\"\"),\"\",טבלת_הוצאות_חודשיות[[#This Row],[עלות מתוכננת]]-טבלת_הוצאות_חודשיות[[#This Row],[עלות בפועל]])","v":""},{"$f":"טבלת_הוצאות_חודשיות[[#This Row],[עלות בפועל]]","v":0}]
[null,"בגדים","בריאות וטיפוח",{"v":150,"d":"₪ 150"},{"v":140,"d":"₪ 140"},{"$f":"IF(OR(טבלת_הוצאות_חודשיות[[#This Row],[עלות מתוכננת]]=\"\",טבלת_הוצאות_חודשיות[[#This Row],[עלות בפועל]]=\"\"),\"\",טבלת_הוצאות_חודשיות[[#This Row],[עלות מתוכננת]]-טבלת_הוצאות_חודשיות[[#This Row],[עלות בפועל]])","v":{"v":10,"d":"₪ 10"}},{"$f":"טבלת_הוצאות_חודשיות[[#This Row],[עלות בפועל]]","v":140}]
[null,"ניקוי יבש","בריאות וטיפוח",null,null,{"$f":"IF(OR(טבלת_הוצאות_חודשיות[[#This Row],[עלות מתוכננת]]=\"\",טבלת_הוצאות_חודשיות[[#This Row],[עלות בפועל]]=\"\"),\"\",טבלת_הוצאות_חודשיות[[#This Row],[עלות מתוכננת]]-טבלת_הוצאות_חודשיות[[#This Row],[עלות בפועל]])","v":""},{"$f":"טבלת_הוצאות_חודשיות[[#This Row],[עלות בפועל]]","v":0}]
[null,"שיער/ציפורניים","בריאות וטיפוח",null,null,{"$f":"IF(OR(טבלת_הוצאות_חודשיות[[#This Row],[עלות מתוכננת]]=\"\",טבלת_הוצאות_חודשיות[[#This Row],[עלות בפועל]]=\"\"),\"\",טבלת_הוצאות_חודשיות[[#This Row],[עלות מתוכננת]]-טבלת_הוצאות_חודשיות[[#This Row],[עלות בפועל]])","v":""},{"$f":"טבלת_הוצאות_חודשיות[[#This Row],[עלות בפועל]]","v":0}]
[null,"מועדון בריאות","בריאות וטיפוח",null,null,{"$f":"IF(OR(טבלת_הוצאות_חודשיות[[#This Row],[עלות מתוכננת]]=\"\",טבלת_הוצאות_חודשיות[[#This Row],[עלות בפועל]]=\"\"),\"\",טבלת_הוצאות_חודשיות[[#This Row],[עלות מתוכננת]]-טבלת_הוצאות_חודשיות[[#This Row],[עלות בפועל]])","v":""},{"$f":"טבלת_הוצאות_חודשיות[[#This Row],[עלות בפועל]]","v":0}]
[null,"תרופות","בריאות וטיפוח",null,null,{"$f":"IF(OR(טבלת_הוצאות_חודשיות[[#This Row],[עלות מתוכננת]]=\"\",טבלת_הוצאות_חודשיות[[#This Row],[עלות בפועל]]=\"\"),\"\",טבלת_הוצאות_חודשיות[[#This Row],[עלות מתוכננת]]-טבלת_הוצאות_חודשיות[[#This Row],[עלות בפועל]])","v":""},{"$f":"טבלת_הוצאות_חודשיות[[#This Row],[עלות בפועל]]","v":0}]
[null,"מזון","חיות מחמד",{"v":150,"d":"₪ 150"},{"v":75,"d":"₪ 75"},{"$f":"IF(OR(טבלת_הוצאות_חודשיות[[#This Row],[עלות מתוכננת]]=\"\",טבלת_הוצאות_חודשיות[[#This Row],[עלות בפועל]]=\"\"),\"\",טבלת_הוצאות_חודשיות[[#This Row],[עלות מתוכננת]]-טבלת_הוצאות_חודשיות[[#This Row],[עלות בפועל]])","v":{"v":75,"d":"₪ 75"}},{"$f":"טבלת_הוצאות_חודשיות[[#This Row],[עלות בפועל]]","v":75}]
[null,"טיפוח","חיות מחמד",{"v":20,"d":"₪ 20"},{"v":25,"d":"₪ 25"},{"$f":"IF(OR(טבלת_הוצאות_חודשיות[[#This Row],[עלות מתוכננת]]=\"\",טבלת_הוצאות_חודשיות[[#This Row],[עלות בפועל]]=\"\"),\"\",טבלת_הוצאות_חודשיות[[#This Row],[עלות מתוכננת]]-טבלת_הוצאות_חודשיות[[#This Row],[עלות בפועל]])","v":{"v":-5,"d":"₪ -5"}},{"$f":"טבלת_הוצאות_חודשיות[[#This Row],[עלות בפועל]]","v":25}]
[null,"תרופות","חיות מחמד",null,null,{"$f":"IF(OR(טבלת_הוצאות_חודשיות[[#This Row],[עלות מתוכננת]]=\"\",טבלת_הוצאות_חודשיות[[#This Row],[עלות בפועל]]=\"\"),\"\",טבלת_הוצאות_חודשיות[[#This Row],[עלות מתוכננת]]-טבלת_הוצאות_חודשיות[[#This Row],[עלות בפועל]])","v":""},{"$f":"טבלת_הוצאות_חודשיות[[#This Row],[עלות בפועל]]","v":0}]
[null,"צעצועים","חיות מחמד",null,null,{"$f":"IF(OR(טבלת_הוצאות_חודשיות[[#This Row],[עלות מתוכננת]]=\"\",טבלת_הוצאות_חודשיות[[#This Row],[עלות בפועל]]=\"\"),\"\",טבלת_הוצאות_חודשיות[[#This Row],[עלות מתוכננת]]-טבלת_הוצאות_חודשיות[[#This Row],[עלות בפועל]])","v":""},{"$f":"טבלת_הוצאות_חודשיות[[#This Row],[עלות בפועל]]","v":0}]
[null,"חשבון להשקעה","חסכונות",{"v":200,"d":"₪ 200"},{"v":200,"d":"₪ 200"},{"$f":"IF(OR(טבלת_הוצאות_חודשיות[[#This Row],[עלות מתוכננת]]=\"\",טבלת_הוצאות_חודשיות[[#This Row],[עלות בפועל]]=\"\"),\"\",טבלת_הוצאות_חודשיות[[#This Row],[עלות מתוכננת]]-טבלת_הוצאות_חודשיות[[#This Row],[עלות בפועל]])","v":{"v":0,"d":"₪ 0"}},{"$f":"טבלת_הוצאות_חודשיות[[#This Row],[עלות בפועל]]","v":200}]
[null,"חשבון לפרישה","חסכונות",null,null,{"$f":"IF(OR(טבלת_הוצאות_חודשיות[[#This Row],[עלות מתוכננת]]=\"\",טבלת_הוצאות_חודשיות[[#This Row],[עלות בפועל]]=\"\"),\"\",טבלת_הוצאות_חודשיות[[#This Row],[עלות מתוכננת]]-טבלת_הוצאות_חודשיות[[#This Row],[עלות בפועל]])","v":""},{"$f":"טבלת_הוצאות_חודשיות[[#This Row],[עלות בפועל]]","v":0}]
[null,"פדרלי","מסים",{"v":300,"d":"₪ 300"},{"v":300,"d":"₪ 300"},{"$f":"IF(OR(טבלת_הוצאות_חודשיות[[#This Row],[עלות מתוכננת]]=\"\",טבלת_הוצאות_חודשיות[[#This Row],[עלות בפועל]]=\"\"),\"\",טבלת_הוצאות_חודשיות[[#This Row],[עלות מתוכננת]]-טבלת_הוצאות_חודשיות[[#This Row],[עלות בפועל]])","v":{"v":0,"d":"₪ 0"}},{"$f":"טבלת_הוצאות_חודשיות[[#This Row],[עלות בפועל]]","v":300}]
[null,"מקומי","מסים",null,null,{"$f":"IF(OR(טבלת_הוצאות_חודשיות[[#This Row],[עלות מתוכננת]]=\"\",טבלת_הוצאות_חודשיות[[#This Row],[עלות בפועל]]=\"\"),\"\",טבלת_הוצאות_חודשיות[[#This Row],[עלות מתוכננת]]-טבלת_הוצאות_חודשיות[[#This Row],[עלות בפועל]])","v":""},{"$f":"טבלת_הוצאות_חודשיות[[#This Row],[עלות בפועל]]","v":0}]
[null,"של המדינה","מסים",null,null,{"$f":"IF(OR(טבלת_הוצאות_חודשיות[[#This Row],[עלות מתוכננת]]=\"\",טבלת_הוצאות_חודשיות[[#This Row],[עלות בפועל]]=\"\"),\"\",טבלת_הוצאות_חודשיות[[#This Row],[עלות מתוכננת]]-טבלת_הוצאות_חודשיות[[#This Row],[עלות בפועל]])","v":""},{"$f":"טבלת_הוצאות_חודשיות[[#This Row],[עלות בפועל]]","v":0}]
[null,"תשלום עבור אוטובוס/מונית","תחבורה",{"v":100,"d":"₪ 100"},{"v":150,"d":"₪ 150"},{"$f":"IF(OR(טבלת_הוצאות_חודשיות[[#This Row],[עלות מתוכננת]]=\"\",טבלת_הוצאות_חודשיות[[#This Row],[עלות בפועל]]=\"\"),\"\",טבלת_הוצאות_חודשיות[[#This Row],[עלות מתוכננת]]-טבלת_הוצאות_חודשיות[[#This Row],[עלות בפועל]])","v":{"v":-50,"d":"₪ -50"}},{"$f":"טבלת_הוצאות_חודשיות[[#This Row],[עלות בפועל]]","v":150}]
[null,"דלק","תחבורה",{"v":450,"d":"₪ 450"},{"v":400,"d":"₪ 400"},{"$f":"IF(OR(טבלת_הוצאות_חודשיות[[#This Row],[עלות מתוכננת]]=\"\",טבלת_הוצאות_חודשיות[[#This Row],[עלות בפועל]]=\"\"),\"\",טבלת_הוצאות_חודשיות[[#This Row],[עלות מתוכננת]]-טבלת_הוצאות_חודשיות[[#This Row],[עלות בפועל]])","v":{"v":50,"d":"₪ 50"}},{"$f":"טבלת_הוצאות_חודשיות[[#This Row],[עלות בפועל]]","v":400}]
[null,"ביטוח","תחבורה",{"v":300,"d":"₪ 300"},{"v":300,"d":"₪ 300"},{"$f":"IF(OR(טבלת_הוצאות_חודשיות[[#This Row],[עלות מתוכננת]]=\"\",טבלת_הוצאות_חודשיות[[#This Row],[עלות בפועל]]=\"\"),\"\",טבלת_הוצאות_חודשיות[[#This Row],[עלות מתוכננת]]-טבלת_הוצאות_חודשיות[[#This Row],[עלות בפועל]])","v":{"v":0,"d":"₪ 0"}},{"$f":"טבלת_הוצאות_חודשיות[[#This Row],[עלות בפועל]]","v":300}]
[null,"רישוי ","תחבורה",{"v":25,"d":"₪ 25"},{"v":25,"d":"₪ 25"},{"$f":"IF(OR(טבלת_הוצאות_חודשיות[[#This Row],[עלות מתוכננת]]=\"\",טבלת_הוצאות_חודשיות[[#This Row],[עלות בפועל]]=\"\"),\"\",טבלת_הוצאות_חודשיות[[#This Row],[עלות מתוכננת]]-טבלת_הוצאות_חודשיות[[#This Row],[עלות בפועל]])","v":{"v":0,"d":"₪ 0"}},{"$f":"טבלת_הוצאות_חודשיות[[#This Row],[עלות בפועל]]","v":25}]
[null,"תחזוקה","תחבורה",{"v":100,"d":"₪ 100"},{"v":50,"d":"₪ 50"},{"$f":"IF(OR(טבלת_הוצאות_חודשיות[[#This Row],[עלות מתוכננת]]=\"\",טבלת_הוצאות_חודשיות[[#This Row],[עלות בפועל]]=\"\"),\"\",טבלת_הוצאות_חודשיות[[#This Row],[עלות מתוכננת]]-טבלת_הוצאות_חודשיות[[#This Row],[עלות בפועל]])","v":{"v":50,"d":"₪ 50"}},{"$f":"טבלת_הוצאות_חודשיות[[#This Row],[עלות בפועל]]","v":50}]
[null,"דמי חניה","תחבורה",null,null,{"$f":"IF(OR(טבלת_הוצאות_חודשיות[[#This Row],[עלות מתוכננת]]=\"\",טבלת_הוצאות_חודשיות[[#This Row],[עלות בפועל]]=\"\"),\"\",טבלת_הוצאות_חודשיות[[#This Row],[עלות מתוכננת]]-טבלת_הוצאות_חודשיות[[#This Row],[עלות בפועל]])","v":""},{"$f":"טבלת_הוצאות_חודשיות[[#This Row],[עלות בפועל]]","v":0}]
[null,"תשלום רכב","תחבורה",{"v":450,"d":"₪ 450"},{"v":450,"d":"₪ 450"},{"$f":"IF(OR(טבלת_הוצאות_חודשיות[[#This Row],[עלות מתוכננת]]=\"\",טבלת_הוצאות_חודשיות[[#This Row],[עלות בפועל]]=\"\"),\"\",טבלת_הוצאות_חודשיות[[#This Row],[עלות מתוכננת]]-טבלת_הוצאות_חודשיות[[#This Row],[עלות בפועל]])","v":{"v":0,"d":"₪ 0"}},{"$f":"טבלת_הוצאות_חודשיות[[#This Row],[עלות בפועל]]","v":450}]

{"sheet":"נתונים נוספים","index":3,"n_rows":17,"n_cols":6,"rows_kept":17}
[{"$nulls":5}," "]
[null,"PivotTable עבור תרשים התקציב",null,null,"רשימת קטגוריות"]
[]
[null,"קטגוריות","עלות",null,"כדי להוסיף קטגוריה, הקלד להלן"]
[null,"חיות מחמד",{"v":100,"d":"₪ 100"},null,"ילדים"]
[null,"מתנות וצדקה",{"v":125,"d":"₪ 125"},null,"בידור"]
[null,"בריאות וטיפוח",{"v":140,"d":"₪ 140"},null,"מזון"]
[null,"ילדים",{"v":140,"d":"₪ 140"},null,"מתנות וצדקה"]
[null,"חסכונות",{"v":200,"d":"₪ 200"},null,"דיור"]
[null,"הלוואות",{"v":200,"d":"₪ 200"},null,"ביטוח"]
[null,"מסים",{"v":300,"d":"₪ 300"},null,"הלוואות"]
[null,"בידור",{"v":358,"d":"₪ 358"},null,"בריאות וטיפוח"]
[null,"ביטוח",{"v":900,"d":"₪ 900"},null,"חיות מחמד"]
[null,"מזון",{"v":1320,"d":"₪ 1,320"},null,"חסכונות"]
[null,"תחבורה",{"v":1375,"d":"₪ 1,375"},null,"מסים"]
[null,"דיור",{"v":2702,"d":"₪ 2,702"},null,"תחבורה"]
[null,"סכום כולל",{"v":7860,"d":"₪ 7,860"}]